[Event "Titled Tuesday Blitz August 17 2021"]
[White "Gracia Alvarez, Gerardo Antonio"]
[Black "Rastbod, Ali"]
[WhiteFideId "5109124"]
[BlackFideId "12567477"]
[WhiteElo "2148"]
[BlackElo "2226"]
[Result "0-1"]
[Round "03"]
[TimeControl "180+1"]
[Date "2021.08.17"]
[WhiteClock "0:00:25"]
[BlackClock "0:01:17"]

1. e4 {[%clk 0:03:00]}  e6 {[%clk 0:02:58]} 2. d4 {[%clk 0:03:00]}  d5 {[%clk 0:02:58]} 3. Nd2 {[%clk 0:03:01]}  Nc6 {[%clk 0:02:58]} 4. Ngf3 {[%clk 0:02:59]}  Nf6 {[%clk 0:02:57]} 5. e5 {[%clk 0:02:59]}  Nd7 {[%clk 0:02:58]} 6. Bd3 {[%clk 0:03:00]}  Nb4 {[%clk 0:02:58]} 7. Be2 {[%clk 0:02:59]}  c5 {[%clk 0:02:59]} 8. c3 {[%clk 0:02:58]}  Nc6 {[%clk 0:02:59]} 9. O-O {[%clk 0:02:58]}  Qb6 {[%clk 0:02:48]} 10. c4 {[%clk 0:02:50]}  cxd4 {[%clk 0:02:41]} 11. cxd5 {[%clk 0:02:47]}  exd5 {[%clk 0:02:42]} 12. Nb3 {[%clk 0:02:44]}  Bc5 {[%clk 0:02:13]} 13. Nxc5 {[%clk 0:02:17]}  Qxc5 {[%clk 0:02:14]} 14. Bf4 {[%clk 0:02:17]}  O-O {[%clk 0:02:12]} 15. Rc1 {[%clk 0:02:13]}  Qb6 {[%clk 0:02:12]} 16. Qd2 {[%clk 0:02:13]}  Re8 {[%clk 0:02:11]} 17. Rfd1 {[%clk 0:01:48]}  Ndxe5 {[%clk 0:02:00]} 18. Nxe5 {[%clk 0:01:48]}  Nxe5 {[%clk 0:02:01]} 19. Qxd4 {[%clk 0:01:47]}  Qxd4 {[%clk 0:02:02]} 20. Rxd4 {[%clk 0:01:47]}  Nc6 {[%clk 0:02:03]} 21. Rd2 {[%clk 0:01:40]}  Be6 {[%clk 0:02:03]} 22. Bf3 {[%clk 0:01:19]}  Red8 {[%clk 0:02:00]} 23. Rcd1 {[%clk 0:01:19]}  d4 {[%clk 0:01:59]} 24. b3 {[%clk 0:01:11]}  Bd5 {[%clk 0:01:59]} 25. Bxd5 {[%clk 0:00:53]}  Rxd5 {[%clk 0:02:00]} 26. Kf1 {[%clk 0:00:51]}  f6 {[%clk 0:01:56]} 27. Ke2 {[%clk 0:00:46]}  g5 {[%clk 0:01:49]} 28. Bg3 {[%clk 0:00:46]}  Re8+ {[%clk 0:01:32]} 29. Kd3 {[%clk 0:00:45]}  Rc5 {[%clk 0:01:22]} 30. Re2 {[%clk 0:00:32]}  Nb4+ {[%clk 0:01:17]} 31. Kxd4 {[%clk 0:00:25]}  Rd5+ {[%clk 0:01:17]} 0-1


[Site "https://www.chess.com"]

[Event "Titled Tuesday Blitz August 17 2021"]
[White "Gubanov, Oleg"]
[Black "De Silva, L M S T"]
[WhiteFideId "14115115"]
[BlackFideId "9953698"]
[WhiteElo "2138"]
[BlackElo "1621"]
[Result "1-0"]
[Round "03"]
[TimeControl "180+1"]
[Date "2021.08.18"]
[WhiteClock "0:00:06"]
[BlackClock "0:00:02"]

1. e4 {[%clk 0:03:00]}  e5 {[%clk 0:02:57]} 2. Bc4 {[%clk 0:02:59]}  Nf6 {[%clk 0:02:57]} 3. d3 {[%clk 0:02:59]}  Nc6 {[%clk 0:02:57]} 4. Nf3 {[%clk 0:02:59]}  h6 {[%clk 0:02:57]} 5. O-O {[%clk 0:02:59]}  d6 {[%clk 0:02:58]} 6. Nc3 {[%clk 0:02:59]}  g5 {[%clk 0:02:58]} 7. a4 {[%clk 0:02:57]}  Bg7 {[%clk 0:02:57]} 8. Re1 {[%clk 0:02:55]}  a6 {[%clk 0:02:48]} 9. Nd5 {[%clk 0:02:47]}  Bg4 {[%clk 0:02:43]} 10. c3 {[%clk 0:02:43]}  Bh5 {[%clk 0:02:38]} 11. d4 {[%clk 0:02:20]}  O-O {[%clk 0:02:35]} 12. dxe5 {[%clk 0:02:19]}  Nxe5 {[%clk 0:02:34]} 13. Be2 {[%clk 0:02:12]}  Nxd5 {[%clk 0:02:31]} 14. exd5 {[%clk 0:02:10]}  Bg6 {[%clk 0:02:26]} 15. Nxe5 {[%clk 0:02:09]}  dxe5 {[%clk 0:02:19]} 16. c4 {[%clk 0:02:08]}  e4 {[%clk 0:02:19]} 17. Qb3 {[%clk 0:01:36]}  b6 {[%clk 0:02:15]} 18. a5 {[%clk 0:01:35]}  bxa5 {[%clk 0:02:11]} 19. Rxa5 {[%clk 0:01:23]}  f5 {[%clk 0:02:11]} 20. Qa3 {[%clk 0:01:10]}  f4 {[%clk 0:02:06]} 21. Bg4 {[%clk 0:01:10]}  Kh7 {[%clk 0:02:02]} 22. Rxa6 {[%clk 0:01:07]}  Rxa6 {[%clk 0:02:02]} 23. Qxa6 {[%clk 0:01:08]}  h5 {[%clk 0:01:53]} 24. Be6 {[%clk 0:01:05]}  g4 {[%clk 0:01:50]} 25. Qc6 {[%clk 0:00:56]}  Be5 {[%clk 0:01:18]} 26. Qd7+ {[%clk 0:00:40]}  Qxd7 {[%clk 0:01:16]} 27. Bxd7 {[%clk 0:00:41]}  g3 {[%clk 0:01:07]} 28. hxg3 {[%clk 0:00:37]}  fxg3 {[%clk 0:01:07]} 29. fxg3 {[%clk 0:00:30]}  Bd4+ {[%clk 0:01:07]} 30. Kh2 {[%clk 0:00:29]}  Rf2 {[%clk 0:01:04]} 31. Bf4 {[%clk 0:00:28]}  Bb6 {[%clk 0:00:55]} 32. b4 {[%clk 0:00:27]}  Bd4 {[%clk 0:00:42]} 33. Be3 {[%clk 0:00:23]}  Bxe3 {[%clk 0:00:40]} 34. Rxe3 {[%clk 0:00:23]}  Rb2 {[%clk 0:00:39]} 35. c5 {[%clk 0:00:20]}  Rxb4 {[%clk 0:00:38]} 36. Rc3 {[%clk 0:00:18]}  Kg7 {[%clk 0:00:36]} 37. d6 {[%clk 0:00:19]}  Rb7 {[%clk 0:00:26]} 38. c6 {[%clk 0:00:18]}  Ra7 {[%clk 0:00:26]} 39. Be6 {[%clk 0:00:14]}  Kf6 {[%clk 0:00:23]} 40. d7 {[%clk 0:00:14]}  Ra8 {[%clk 0:00:23]} 41. Bd5 {[%clk 0:00:13]}  Ke5 {[%clk 0:00:21]} 42. Rc5 {[%clk 0:00:13]}  Kd6 {[%clk 0:00:21]} 43. Ra5 {[%clk 0:00:13]}  Rd8 {[%clk 0:00:17]} 44. Kg1 {[%clk 0:00:10]}  e3 {[%clk 0:00:17]} 45. Kf1 {[%clk 0:00:10]}  Bd3+ {[%clk 0:00:17]} 46. Ke1 {[%clk 0:00:10]}  Rf8 {[%clk 0:00:18]} 47. Bf3 {[%clk 0:00:10]}  Rb8 {[%clk 0:00:17]} 48. Ra1 {[%clk 0:00:06]}  Ke7 {[%clk 0:00:14]} 49. Rd1 {[%clk 0:00:06]}  Bc4 {[%clk 0:00:13]} 50. Be2 {[%clk 0:00:05]}  Bf7 {[%clk 0:00:12]} 51. Rd3 {[%clk 0:00:05]}  Rb6 {[%clk 0:00:10]} 52. Rxe3+ {[%clk 0:00:05]}  Kd8 {[%clk 0:00:11]} 53. Bf3 {[%clk 0:00:05]}  Rb2 {[%clk 0:00:09]} 54. Re2 {[%clk 0:00:05]}  Rb6 {[%clk 0:00:09]} 55. Kf2 {[%clk 0:00:06]}  Rb4 {[%clk 0:00:09]} 56. Rc2 {[%clk 0:00:05]}  Rd4 {[%clk 0:00:09]} 57. Rb2 {[%clk 0:00:04]}  Ke7 {[%clk 0:00:08]} 58. Rb8 {[%clk 0:00:04]}  Rd2+ {[%clk 0:00:08]} 59. Ke3 {[%clk 0:00:05]}  Rd6 {[%clk 0:00:09]} 60. Be4 {[%clk 0:00:05]}  Rd1 {[%clk 0:00:06]} 61. Rh8 {[%clk 0:00:05]}  Rd6 {[%clk 0:00:05]} 62. Kf4 {[%clk 0:00:05]}  Rd2 {[%clk 0:00:03]} 63. Rh7 {[%clk 0:00:05]}  Rd4 {[%clk 0:00:02]} 64. Ke3 {[%clk 0:00:05]}  Rd6 {[%clk 0:00:02]} 65. Kf4 {[%clk 0:00:05]}  Kf6 {[%clk 0:00:02]} 66. Rh6+ {[%clk 0:00:05]}  Ke7 {[%clk 0:00:03]} 67. Rxd6 {[%clk 0:00:05]}  cxd6 {[%clk 0:00:04]} 68. Kg5 {[%clk 0:00:06]}  d5 {[%clk 0:00:04]} 69. Bf5 {[%clk 0:00:06]}  d4 {[%clk 0:00:02]} 70. c7 {[%clk 0:00:06]} 1-0


[Site "https://www.chess.com"]

[Event "Titled Tuesday Blitz August 17 2021"]
[White "Guliev, Logman"]
[Black "Nazaretyan, Tigran"]
[WhiteFideId "13400061"]
[BlackFideId "24162345"]
[WhiteElo "2128"]
[BlackElo "2167"]
[Result "1-0"]
[Round "03"]
[TimeControl "180+1"]
[Date "2021.08.18"]
[WhiteClock "0:00:21"]
[BlackClock "0:00:09"]

1. e4 {[%clk 0:03:00]}  c5 {[%clk 0:02:59]} 2. Nf3 {[%clk 0:03:00]}  Nc6 {[%clk 0:02:59]} 3. d4 {[%clk 0:03:00]}  cxd4 {[%clk 0:02:58]} 4. Nxd4 {[%clk 0:03:01]}  Nf6 {[%clk 0:02:59]} 5. Nc3 {[%clk 0:03:00]}  d6 {[%clk 0:02:59]} 6. Be2 {[%clk 0:02:58]}  e5 {[%clk 0:02:57]} 7. Nf3 {[%clk 0:02:58]}  h6 {[%clk 0:02:57]} 8. O-O {[%clk 0:02:58]}  Be7 {[%clk 0:02:57]} 9. h3 {[%clk 0:02:58]}  O-O {[%clk 0:02:57]} 10. Re1 {[%clk 0:02:59]}  a6 {[%clk 0:02:54]} 11. Bf1 {[%clk 0:02:59]}  b5 {[%clk 0:02:54]} 12. Nd5 {[%clk 0:02:58]}  Nxd5 {[%clk 0:02:51]} 13. exd5 {[%clk 0:02:59]}  Nb8 {[%clk 0:02:50]} 14. b3 {[%clk 0:02:50]}  Nd7 {[%clk 0:02:41]} 15. c4 {[%clk 0:02:50]}  bxc4 {[%clk 0:02:36]} 16. bxc4 {[%clk 0:02:50]}  Nc5 {[%clk 0:02:30]} 17. Be3 {[%clk 0:02:49]}  Qc7 {[%clk 0:02:26]} 18. Qc2 {[%clk 0:02:46]}  f5 {[%clk 0:02:23]} 19. Rab1 {[%clk 0:02:38]}  Bf6 {[%clk 0:02:06]} 20. Nd2 {[%clk 0:02:15]}  e4 {[%clk 0:02:01]} 21. Nb3 {[%clk 0:02:09]}  Nxb3 {[%clk 0:01:52]} 22. Rxb3 {[%clk 0:02:09]}  Be5 {[%clk 0:01:52]} 23. Reb1 {[%clk 0:02:02]}  f4 {[%clk 0:01:47]} 24. Bb6 {[%clk 0:02:01]}  Qf7 {[%clk 0:01:42]} 25. Qxe4 {[%clk 0:01:49]}  Bf5 {[%clk 0:01:41]} 26. Qf3 {[%clk 0:01:50]}  Bxb1 {[%clk 0:01:27]} 27. Rxb1 {[%clk 0:01:50]}  Rab8 {[%clk 0:01:27]} 28. Bd3 {[%clk 0:01:50]}  Rb7 {[%clk 0:01:19]} 29. a4 {[%clk 0:01:48]}  a5 {[%clk 0:01:18]} 30. Rb5 {[%clk 0:01:36]}  Rfb8 {[%clk 0:01:02]} 31. Bxa5 {[%clk 0:01:35]}  Rxb5 {[%clk 0:01:00]} 32. axb5 {[%clk 0:01:31]}  Qa7 {[%clk 0:00:59]} 33. Bb4 {[%clk 0:01:25]}  Qa1+ {[%clk 0:00:52]} 34. Kh2 {[%clk 0:01:24]}  Qd4 {[%clk 0:00:52]} 35. Be1 {[%clk 0:00:38]}  Ra8 {[%clk 0:00:49]} 36. Qe4 {[%clk 0:00:37]}  f3+ {[%clk 0:00:48]} 37. g3 {[%clk 0:00:37]}  Ra1 {[%clk 0:00:32]} 38. Qh7+ {[%clk 0:00:33]}  Kf8 {[%clk 0:00:32]} 39. Qf5+ {[%clk 0:00:31]}  Bf6 {[%clk 0:00:30]} 40. Qc8+ {[%clk 0:00:30]}  Ke7 {[%clk 0:00:24]} 41. Qe6+ {[%clk 0:00:29]}  Kd8 {[%clk 0:00:19]} 42. Qxd6+ {[%clk 0:00:29]}  Kc8 {[%clk 0:00:20]} 43. Bf5+ {[%clk 0:00:28]}  Kb7 {[%clk 0:00:20]} 44. Qc6+ {[%clk 0:00:28]}  Ka7 {[%clk 0:00:20]} 45. Qc7+ {[%clk 0:00:27]}  Ka8 {[%clk 0:00:20]} 46. b6 {[%clk 0:00:22]}  Qb2 {[%clk 0:00:09]} 47. Qc8# {[%clk 0:00:21]} 1-0


[Site "https://www.chess.com"]

[Event "Titled Tuesday Blitz August 17 2021"]
[White "Gupta, Abhijeet"]
[Black "Shimelkov, Vasiliy"]
[WhiteFideId "5010608"]
[BlackFideId "13701630"]
[WhiteElo "2549"]
[BlackElo "2073"]
[Result "1-0"]
[Round "03"]
[TimeControl "180+1"]
[Date "2021.08.17"]
[WhiteClock "0:01:15"]
[BlackClock "0:00:21"]

1. Nf3 {[%clk 0:03:00]}  d5 {[%clk 0:02:59]} 2. c4 {[%clk 0:03:00]}  e6 {[%clk 0:02:59]} 3. g3 {[%clk 0:03:00]}  Nf6 {[%clk 0:02:58]} 4. Bg2 {[%clk 0:03:01]}  c5 {[%clk 0:02:58]} 5. O-O {[%clk 0:03:01]}  Nc6 {[%clk 0:02:58]} 6. d4 {[%clk 0:02:58]}  b6 {[%clk 0:02:56]} 7. cxd5 {[%clk 0:02:57]}  exd5 {[%clk 0:02:55]} 8. Nc3 {[%clk 0:02:56]}  Be7 {[%clk 0:02:55]} 9. Bg5 {[%clk 0:02:49]}  Be6 {[%clk 0:02:52]} 10. Qa4 {[%clk 0:02:44]}  Qd7 {[%clk 0:02:51]} 11. dxc5 {[%clk 0:02:43]}  bxc5 {[%clk 0:02:48]} 12. Rfd1 {[%clk 0:02:39]}  O-O {[%clk 0:02:44]} 13. Rac1 {[%clk 0:02:27]}  h6 {[%clk 0:02:37]} 14. Bxf6 {[%clk 0:02:25]}  Bxf6 {[%clk 0:02:34]} 15. Nxd5 {[%clk 0:02:03]}  Bxd5 {[%clk 0:02:30]} 16. Rxc5 {[%clk 0:02:03]}  Ne5 {[%clk 0:01:44]} 17. Qxd7 {[%clk 0:02:02]}  Nxd7 {[%clk 0:01:44]} 18. Rcxd5 {[%clk 0:02:02]}  Nb6 {[%clk 0:01:44]} 19. Rb5 {[%clk 0:02:03]}  Rad8 {[%clk 0:01:43]} 20. Rxd8 {[%clk 0:01:58]}  Rxd8 {[%clk 0:01:43]} 21. b3 {[%clk 0:01:58]}  Rd1+ {[%clk 0:01:40]} 22. Bf1 {[%clk 0:01:59]}  g5 {[%clk 0:01:26]} 23. h3 {[%clk 0:01:56]}  Ra1 {[%clk 0:01:24]} 24. a4 {[%clk 0:01:55]}  Nd7 {[%clk 0:01:13]} 25. Kg2 {[%clk 0:01:54]}  a6 {[%clk 0:01:11]} 26. Rd5 {[%clk 0:01:49]}  Nf8 {[%clk 0:01:06]} 27. e3 {[%clk 0:01:48]}  Ne6 {[%clk 0:01:04]} 28. Bxa6 {[%clk 0:01:46]}  Rb1 {[%clk 0:01:03]} 29. Bc4 {[%clk 0:01:45]}  Rb2 {[%clk 0:00:58]} 30. a5 {[%clk 0:01:44]}  Bd8 {[%clk 0:00:45]} 31. Nd4 {[%clk 0:01:38]}  Bc7 {[%clk 0:00:41]} 32. Nxe6 {[%clk 0:01:33]}  fxe6 {[%clk 0:00:41]} 33. Rc5 {[%clk 0:01:33]}  Bd6 {[%clk 0:00:36]} 34. Rc6 {[%clk 0:01:30]}  Bb4 {[%clk 0:00:36]} 35. Rxe6 {[%clk 0:01:29]}  Be1 {[%clk 0:00:36]} 36. Rf6+ {[%clk 0:01:22]}  Kg7 {[%clk 0:00:35]} 37. Rf7+ {[%clk 0:01:22]}  Kg6 {[%clk 0:00:36]} 38. a6 {[%clk 0:01:23]}  Ra2 {[%clk 0:00:30]} 39. g4 {[%clk 0:01:22]}  Bb4 {[%clk 0:00:28]} 40. Rf5 {[%clk 0:01:20]}  Be1 {[%clk 0:00:24]} 41. b4 {[%clk 0:01:16]}  Ra3 {[%clk 0:00:21]} 42. b5 {[%clk 0:01:15]} 1-0


[Site "https://www.chess.com"]

[Event "Titled Tuesday Blitz August 17 2021"]
[White "Indjic, Aleksandar"]
[Black "Skliarov, Viktor"]
[WhiteFideId "911925"]
[BlackFideId "14106736"]
[WhiteElo "2643"]
[BlackElo "2281"]
[Result "1/2-1/2"]
[Round "03"]
[TimeControl "180+1"]
[Date "2021.08.17"]
[WhiteClock "0:00:08"]
[BlackClock "0:00:03"]

1. d4 {[%clk 0:03:00]}  Nf6 {[%clk 0:02:59]} 2. c4 {[%clk 0:03:01]}  e6 {[%clk 0:02:59]} 3. Nc3 {[%clk 0:03:01]}  Bb4 {[%clk 0:02:59]} 4. Qc2 {[%clk 0:03:02]}  c5 {[%clk 0:02:59]} 5. dxc5 {[%clk 0:03:01]}  Na6 {[%clk 0:03:00]} 6. a3 {[%clk 0:03:00]}  Bxc3+ {[%clk 0:03:00]} 7. Qxc3 {[%clk 0:03:01]}  Nxc5 {[%clk 0:03:01]} 8. f3 {[%clk 0:02:58]}  d5 {[%clk 0:03:00]} 9. cxd5 {[%clk 0:02:58]}  b6 {[%clk 0:03:00]} 10. Bg5 {[%clk 0:02:57]}  exd5 {[%clk 0:02:52]} 11. Bxf6 {[%clk 0:02:56]}  Qxf6 {[%clk 0:02:51]} 12. Qxf6 {[%clk 0:02:55]}  gxf6 {[%clk 0:02:51]} 13. e3 {[%clk 0:02:56]}  Nb3 {[%clk 0:02:43]} 14. Rd1 {[%clk 0:02:55]}  Be6 {[%clk 0:02:37]} 15. Bb5+ {[%clk 0:02:54]}  Ke7 {[%clk 0:02:37]} 16. Ne2 {[%clk 0:02:49]}  Rac8 {[%clk 0:02:33]} 17. Ba4 {[%clk 0:02:49]}  Na5 {[%clk 0:02:13]} 18. Bb5 {[%clk 0:02:15]}  Nb3 {[%clk 0:01:44]} 19. Bd3 {[%clk 0:02:12]}  Rhd8 {[%clk 0:01:32]} 20. Nd4 {[%clk 0:02:11]}  Nxd4 {[%clk 0:01:24]} 21. exd4 {[%clk 0:02:12]}  h6 {[%clk 0:01:17]} 22. Kf2 {[%clk 0:02:07]}  Kd6 {[%clk 0:01:16]} 23. Ke3 {[%clk 0:02:06]}  Rg8 {[%clk 0:01:14]} 24. g3 {[%clk 0:02:04]}  Rc7 {[%clk 0:01:12]} 25. Rc1 {[%clk 0:02:03]}  Rgc8 {[%clk 0:01:12]} 26. Rxc7 {[%clk 0:02:03]}  Rxc7 {[%clk 0:01:13]} 27. Kf4 {[%clk 0:01:56]}  a5 {[%clk 0:01:07]} 28. h4 {[%clk 0:01:53]}  Rc8 {[%clk 0:01:07]} 29. Re1 {[%clk 0:01:49]}  Rc7 {[%clk 0:01:05]} 30. Ke3 {[%clk 0:01:34]}  Rc8 {[%clk 0:01:04]} 31. Kd2 {[%clk 0:01:34]}  Rg8 {[%clk 0:00:56]} 32. Rg1 {[%clk 0:01:33]}  Rc8 {[%clk 0:00:54]} 33. Rc1 {[%clk 0:01:32]}  Rg8 {[%clk 0:00:52]} 34. Rg1 {[%clk 0:01:22]}  Rc8 {[%clk 0:00:52]} 35. g4 {[%clk 0:01:18]}  Rc7 {[%clk 0:00:48]} 36. Rb1 {[%clk 0:00:57]}  Ra7 {[%clk 0:00:30]} 37. Rc1 {[%clk 0:00:56]}  Rc7 {[%clk 0:00:29]} 38. Rxc7 {[%clk 0:00:48]}  Kxc7 {[%clk 0:00:29]} 39. Ke3 {[%clk 0:00:49]}  Kd6 {[%clk 0:00:29]} 40. Kf4 {[%clk 0:00:49]}  Ke7 {[%clk 0:00:29]} 41. Bf5 {[%clk 0:00:42]}  Kd6 {[%clk 0:00:26]} 42. Bxe6 {[%clk 0:00:39]}  fxe6 {[%clk 0:00:18]} 43. g5 {[%clk 0:00:38]}  hxg5+ {[%clk 0:00:17]} 44. hxg5 {[%clk 0:00:38]}  fxg5+ {[%clk 0:00:09]} 45. Kxg5 {[%clk 0:00:39]}  e5 {[%clk 0:00:09]} 46. dxe5+ {[%clk 0:00:15]}  Kxe5 {[%clk 0:00:10]} 47. f4+ {[%clk 0:00:15]}  Ke4 {[%clk 0:00:10]} 48. f5 {[%clk 0:00:16]}  d4 {[%clk 0:00:11]} 49. f6 {[%clk 0:00:16]}  d3 {[%clk 0:00:12]} 50. f7 {[%clk 0:00:17]}  d2 {[%clk 0:00:13]} 51. f8=Q {[%clk 0:00:17]}  d1=Q {[%clk 0:00:13]} 52. Qe8+ {[%clk 0:00:16]}  Kd3 {[%clk 0:00:10]} 53. Qb5+ {[%clk 0:00:13]}  Kc2 {[%clk 0:00:09]} 54. Qxb6 {[%clk 0:00:11]}  Qc1+ {[%clk 0:00:05]} 55. Kf5 {[%clk 0:00:11]}  Qxb2 {[%clk 0:00:06]} 56. Qxa5 {[%clk 0:00:11]}  Qb8 {[%clk 0:00:03]} 57. a4 {[%clk 0:00:10]}  Qf8+ {[%clk 0:00:02]} 58. Ke6 {[%clk 0:00:10]}  Qe8+ {[%clk 0:00:02]} 59. Kd6 {[%clk 0:00:10]}  Qg6+ {[%clk 0:00:02]} 60. Kc7 {[%clk 0:00:08]}  Qf7+ {[%clk 0:00:02]} 61. Kc8 {[%clk 0:00:06]}  Kb3 {[%clk 0:00:02]} 62. Qb5+ {[%clk 0:00:05]}  Kc3 {[%clk 0:00:02]} 63. Qc5+ {[%clk 0:00:04]}  Kd3 {[%clk 0:00:01]} 64. a5 {[%clk 0:00:04]}  Qe6+ {[%clk 0:00:02]} 65. Kc7 {[%clk 0:00:05]}  Qf7+ {[%clk 0:00:02]} 66. Kd8 {[%clk 0:00:05]}  Qg8+ {[%clk 0:00:02]} 67. Kd7 {[%clk 0:00:05]}  Qg7+ {[%clk 0:00:02]} 68. Qe7 {[%clk 0:00:06]}  Qg4+ {[%clk 0:00:03]} 69. Qe6 {[%clk 0:00:06]}  Qa4+ {[%clk 0:00:03]} 70. Qc6 {[%clk 0:00:06]}  Qxa5 {[%clk 0:00:03]} 71. Qd6+ {[%clk 0:00:07]}  Kc3 {[%clk 0:00:03]} 72. Qc7+ {[%clk 0:00:07]}  Qxc7+ {[%clk 0:00:03]} 73. Kxc7 {[%clk 0:00:08]} 1/2-1/2


[Site "https://www.chess.com"]

[Event "Titled Tuesday Blitz August 17 2021"]
[White "Ismayil, Malak"]
[Black "Sovetbekova, Nurai"]
[WhiteFideId "13412604"]
[BlackFideId "13801910"]
[WhiteElo "1879"]
[BlackElo "1516"]
[Result "1-0"]
[Round "03"]
[TimeControl "180+1"]
[Date "2021.08.18"]
[WhiteClock "0:00:04"]
[BlackClock "0:00:03"]

1. e4 {[%clk 0:03:00]}  c5 {[%clk 0:02:59]} 2. Nf3 {[%clk 0:03:00]}  d6 {[%clk 0:02:58]} 3. d4 {[%clk 0:02:59]}  cxd4 {[%clk 0:02:59]} 4. Nxd4 {[%clk 0:02:59]}  Nf6 {[%clk 0:02:59]} 5. Nc3 {[%clk 0:02:59]}  a6 {[%clk 0:03:00]} 6. Bc4 {[%clk 0:02:59]}  e6 {[%clk 0:02:59]} 7. O-O {[%clk 0:02:58]}  Be7 {[%clk 0:03:00]} 8. Be3 {[%clk 0:02:57]}  O-O {[%clk 0:02:59]} 9. a3 {[%clk 0:02:50]}  b5 {[%clk 0:02:55]} 10. Bd3 {[%clk 0:02:48]}  Bb7 {[%clk 0:02:55]} 11. f4 {[%clk 0:02:47]}  Nbd7 {[%clk 0:02:55]} 12. Nb3 {[%clk 0:02:47]}  Nc5 {[%clk 0:02:30]} 13. Nd2 {[%clk 0:02:36]}  d5 {[%clk 0:02:08]} 14. Bxc5 {[%clk 0:02:21]}  Bxc5+ {[%clk 0:02:06]} 15. Kh1 {[%clk 0:02:22]}  dxe4 {[%clk 0:01:30]} 16. Ncxe4 {[%clk 0:02:17]}  Nxe4 {[%clk 0:01:30]} 17. Bxe4 {[%clk 0:02:17]}  Bxe4 {[%clk 0:01:27]} 18. Nxe4 {[%clk 0:02:18]}  Qb6 {[%clk 0:01:27]} 19. Qf3 {[%clk 0:02:09]}  Rad8 {[%clk 0:01:26]} 20. Rad1 {[%clk 0:02:06]}  b4 {[%clk 0:01:13]} 21. axb4 {[%clk 0:01:59]}  Qxb4 {[%clk 0:01:09]} 22. h3 {[%clk 0:01:45]}  Be7 {[%clk 0:00:52]} 23. b3 {[%clk 0:01:41]}  a5 {[%clk 0:00:52]} 24. Ra1 {[%clk 0:01:36]}  Rc8 {[%clk 0:00:52]} 25. Ra4 {[%clk 0:01:30]}  Qb6 {[%clk 0:00:46]} 26. Qe2 {[%clk 0:01:13]}  Rc7 {[%clk 0:00:35]} 27. Rfa1 {[%clk 0:01:08]}  Bb4 {[%clk 0:00:35]} 28. Qd3 {[%clk 0:00:53]}  Rfc8 {[%clk 0:00:29]} 29. c4 {[%clk 0:00:52]}  Qc6 {[%clk 0:00:24]} 30. Rd1 {[%clk 0:00:48]}  h6 {[%clk 0:00:21]} 31. Nf2 {[%clk 0:00:36]}  Qb6 {[%clk 0:00:18]} 32. Ng4 {[%clk 0:00:36]}  Be7 {[%clk 0:00:17]} 33. Ne5 {[%clk 0:00:34]}  Rd8 {[%clk 0:00:17]} 34. Qe2 {[%clk 0:00:29]}  Qb8 {[%clk 0:00:17]} 35. Rxd8+ {[%clk 0:00:22]}  Qxd8 {[%clk 0:00:18]} 36. Rxa5 {[%clk 0:00:20]}  f6 {[%clk 0:00:16]} 37. Nf3 {[%clk 0:00:19]}  Rc6 {[%clk 0:00:13]} 38. Ra1 {[%clk 0:00:17]}  Bc5 {[%clk 0:00:12]} 39. Rd1 {[%clk 0:00:17]}  Qc7 {[%clk 0:00:13]} 40. Qe4 {[%clk 0:00:15]}  f5 {[%clk 0:00:12]} 41. Qe2 {[%clk 0:00:13]}  Qxf4 {[%clk 0:00:11]} 42. Ne5 {[%clk 0:00:12]}  Rc8 {[%clk 0:00:08]} 43. Nd3 {[%clk 0:00:11]}  Qc7 {[%clk 0:00:08]} 44. Qxe6+ {[%clk 0:00:10]}  Kh8 {[%clk 0:00:08]} 45. Qxf5 {[%clk 0:00:09]}  Rf8 {[%clk 0:00:07]} 46. Qxc5 {[%clk 0:00:09]}  Qb8 {[%clk 0:00:05]} 47. Qd4 {[%clk 0:00:08]}  Rd8 {[%clk 0:00:05]} 48. Qg1 {[%clk 0:00:06]}  Qxb3 {[%clk 0:00:05]} 49. Nf2 {[%clk 0:00:06]}  Rf8 {[%clk 0:00:05]} 50. c5 {[%clk 0:00:04]}  Qc2 {[%clk 0:00:04]} 51. Ng4 {[%clk 0:00:04]}  h5 {[%clk 0:00:03]} 52. Ne5 {[%clk 0:00:04]} 1-0


[Site "https://www.chess.com"]

[Event "Titled Tuesday Blitz August 17 2021"]
[White "Ivanisevic, Ivan"]
[Black "Wachinger, Guenther"]
[WhiteFideId "912417"]
[BlackFideId "4604261"]
[WhiteElo "2499"]
[BlackElo "2212"]
[Result "1-0"]
[Round "03"]
[TimeControl "180+1"]
[Date "2021.08.17"]
[WhiteClock "0:01:45"]
[BlackClock "0:00:29"]

1. d4 {[%clk 0:03:00]}  d5 {[%clk 0:02:54]} 2. c4 {[%clk 0:03:01]}  e6 {[%clk 0:02:55]} 3. Nf3 {[%clk 0:02:59]}  c6 {[%clk 0:02:54]} 4. Nc3 {[%clk 0:02:58]}  dxc4 {[%clk 0:02:54]} 5. a4 {[%clk 0:02:55]}  Bb4 {[%clk 0:02:48]} 6. e4 {[%clk 0:02:54]}  Nf6 {[%clk 0:02:35]} 7. Bg5 {[%clk 0:02:53]}  b5 {[%clk 0:02:24]} 8. e5 {[%clk 0:02:51]}  h6 {[%clk 0:02:24]} 9. exf6 {[%clk 0:02:50]}  hxg5 {[%clk 0:02:24]} 10. fxg7 {[%clk 0:02:51]}  Rg8 {[%clk 0:02:25]} 11. g3 {[%clk 0:02:51]}  Nd7 {[%clk 0:01:53]} 12. Bg2 {[%clk 0:02:49]}  Nb6 {[%clk 0:01:54]} 13. O-O {[%clk 0:02:45]}  Bxc3 {[%clk 0:01:53]} 14. bxc3 {[%clk 0:02:44]}  Nd5 {[%clk 0:01:53]} 15. Qd2 {[%clk 0:02:33]}  Rxg7 {[%clk 0:01:53]} 16. Ne5 {[%clk 0:02:31]}  Bb7 {[%clk 0:01:45]} 17. Rab1 {[%clk 0:02:27]}  a6 {[%clk 0:01:44]} 18. Nxc4 {[%clk 0:02:26]}  bxc4 {[%clk 0:01:33]} 19. Rxb7 {[%clk 0:02:25]}  Qa5 {[%clk 0:01:33]} 20. Bxd5 {[%clk 0:02:14]}  Qxd5 {[%clk 0:01:30]} 21. Rfb1 {[%clk 0:02:14]}  Qa5 {[%clk 0:01:16]} 22. Qe3 {[%clk 0:02:09]}  O-O-O {[%clk 0:01:10]} 23. Qf3 {[%clk 0:01:51]}  Qd5 {[%clk 0:00:37]} 24. Rb8+ {[%clk 0:01:50]}  Kd7 {[%clk 0:00:29]} 25. Rxd8+ {[%clk 0:01:45]}  Kxd8 {[%clk 0:00:29]} 26. Qf6+ {[%clk 0:01:45]} 1-0


[Site "https://www.chess.com"]